Cogmind - Beta 12 @@@ ROGUE MODE // 2023.04.09 @ 16:07:32 Player: ZLD1 Result: Destroyed by G-47 Trooper with Particle Gun Performance ------------- Evolutions (0) 0 Regions Visited (4) 800 Robots Destroyed (15) 75 Value Destroyed (290) 290 Prototype IDs (23) 460 Alien Tech Used (0) 0 Bonus (300) 300 TOTAL SCORE: 1925 Bonus ------- Aligned with FarCom 300 Cogmind --------- Core Integrity 0/250 Matter 285/300 Energy 99/100 System Corruption 0% Temperature Cool (9) Movement Core (100) Ox1 Location -9/Mines Parts ------- > --- POWER (1) -------- (None) > --- PROPULSION (2) --- (None) > --- UTILITY (2) ------ Small Storage Unit > --- WEAPON (2) ------- Light Assault Rifle > --- INVENTORY (8) ---- Light Ion Engine Aluminum Leg Aluminum Leg Medium Storage Unit Seismic Detector 0b10 Alert Chip Battle Cannon Peak State ------------ > --- POWER ------------ Ion Engine > --- PROPULSION ------- Aluminum Leg Aluminum Leg > --- UTILITY ---------- Small Storage Unit > --- WEAPON ----------- Light Assault Rifle Light Assault Rifle > --- INVENTORY -------- Light Ion Engine Medium Storage Unit Seismic Detector 0b10 Alert Chip Light Assault Rifle Battle Cannon [Rating: 7] Favorites ----------- Power Ion Engine Engine Ion Engine Propulsion Aluminum Leg Leg Aluminum Leg Utility Small Storage Unit Storage Small Storage Unit Weapon Light Assault Rifle Energy Gun Medium Laser Ballistic Gun Light Assault Rifle Build | -11 -10 -10 -10 -9 ------- Run | Jun Mat Min Exi Min Slots Evolved . | . . . . . Power . | . . . . . Propulsion . | . . . . . Utility . | . . . . . Weapon . | . . . . . Parts Attached 9 | 6 . 2 . 1 Power 2 | 1 . 1 . . Engine 2 | 1 . 1 . . Core . | . . . . . Reactor . | . . . . . Propulsion 2 | 2 . . . . Treads . | . . . . . Leg 2 | 2 . . . . Wheel . | . . . . . Hover . | . . . . . Flight . | . . . . . Utility 1 | 1 . . . . Device . | . . . . . Storage 1 | 1 . . . . Processor . | . . . . . Hackware . | . . . . . Protection . | . . . . . Artifact . | . . . . . Weapon 4 | 2 . 1 . 1 Energy Gun 1 | 1 . . . . Energy Cannon . | . . . . . Ballistic Gun 3 | 1 . 1 . 1 Ballistic Cannon . | . . . . . Launcher . | . . . . . Special Weapon . | . . . . . Impact Weapon . | . . . . . Slashing Weapon . | . . . . . Piercing Weapon . | . . . . . Special Melee Weapon . | . . . . . Unidentified Prototypes . | . . . . . Parts Lost 7 | . . 2 . 5 Power 2 | . . 1 . 1 Propulsion 2 | . . . . 2 Utility . | . . . . . Weapon 3 | . . 1 . 2 Highest Loss Streak 3 | . . 2 . 3 To Critical Strikes . | . . . . . Average Slot Usage (%) 81 | . 85 82 85 51 Engine 13 | . 14 12 14 10 Leg 25 | . 28 28 28 1 Storage 14 | . 14 14 14 14 Energy Gun 7 | . 14 12 . . Ballistic Gun 19 | . 14 15 28 24 Naked Turns . | . . . . . Heaviest Build 13 | 13 13 13 12 12 Greatest Support 20 | 20 20 20 20 20 Greatest Overweight (x) 3 | . . . . 3 Average Overweight (x) . | . . . . 2 Largest Inventory Capacity 8 | 8 8 8 8 8 Average Capacity 7 | 7 8 8 8 8 Most Carried 7 | 5 4 7 6 7 Average Carried 4 | 1 3 5 5 6 Final Capacity 8 | 8 8 8 8 8 Final Carried 7 | 2 4 5 6 7 Class Distribution -------------------- 100% | Mutant Dominant Class ---------------- Mutant | -10/Materials Mutant | -10/Mines Mutant | -10/Exiles Mutant | -9/Mines Resources | -11 -10 -10 -10 -9 ----------- Run | Jun Mat Min Exi Min Matter Collected 322 | 264 . 42 . 16 Remotely . | . . . . . Salvage Created 362 | 46 . 193 . 123 Parts 28 | 7 . 14 . 7 Haulers Intercepted . | . . . . . Recyclers Shooed 1 | 1 . . . . Parts Field Recycled . | . . . . . Retrieved Matter . | . . . . . Parts Self-Destructed . | . . . . . Prevented . | . . . . . Kills | -11 -10 -10 -10 -9 ------- Run | Jun Mat Min Exi Min Combat Hostiles Destroyed 13 | . . 10 . 3 Guns 13 | . . 10 . 3 Classes Destroyed 3 | 1 . 2 . . Tunneler 2 | 2 . . . . Swarmer 8 | . . 8 . . Grunt 5 | . . 2 . 3 Best Kill Streak 3 | 2 . 3 . 2 Combat Bots Only 3 | . . 3 . 2 Max Kills in Single Turn 1 | 1 . 1 . 1 Gunslinging . | . . . . . Exploded . | . . . . . Melee . | . . . . . Uniques/NPCs Destroyed . | . . . . . Combat | -11 -10 -10 -10 -9 -------- Run | Jun Mat Min Exi Min Damage Taken 944 | . 76 356 . 512 Core 250 | . 7 76 . 167 Absorbed by Shields . | . . . . . Core Remaining (%) 100 | 100 . . . . Volleys Fired 54 | 4 1 27 . 22 Largest 2 | 2 2 2 . 2 Hottest 70 | 70 70 70 . 40 Shots Fired 94 | 8 2 44 . 40 Gun 94 | 8 2 44 . 40 Cannon . | . . . . . Launcher . | . . . . . Special . | . . . . . Kinetic 73 | 4 1 28 . 40 Thermal 21 | 4 1 16 . . Explosive . | . . . . . Electromagnetic . | . . . . . Robot Hit Streak 11 | 3 . 11 . 5 Robot Miss Streak 3 | 1 2 3 . 2 Penetration Max . | . . . . . Secondary Targets 4 | . . 2 . 2 Max Gunslinging Chain 1 | . . 1 . 1 Shots Hit Robots 57 | 5 . 28 . 24 Core Hits 29 | 3 . 17 . 9 Critical Kills 1 | . . . . 1 Critical Parts Destroyed . | . . . . . Critical Strikes 2 | . . 1 . 1 Burn 1 | . . 1 . . Destroy 1 | . . . . 1 Melee Attacks . | . . . . . Impact . | . . . . . Slashing . | . . . . . Piercing . | . . . . . Sneak Attacks . | . . . . . Combat Hostiles . | . . . . . Follow-up Attacks . | . . . . . Damage Inflicted 542 | 64 . 275 . 203 Guns 535 | 64 . 268 . 203 Cannons . | . . . . . Explosions . | . . . . . Melee . | . . . . . Ramming 7 | . . 7 . . Kinetic 373 | 26 . 144 . 203 Thermal 162 | 38 . 124 . . Explosive . | . . . . . Electromagnetic . | . . . . . Impact . | . . . . . Slashing . | . . . . . Piercing . | . . . . . Highest Corruption . | . . . . . Average Corruption . | . . . . . Corruption Purged . | . . . . . Corruption Blocked . | . . . . . Overload Shots . | . . . . . Overflow Damage . | . . . . . Projectiles . | . . . . . Explosions . | . . . . . Melee . | . . . . . Knockbacks . | . . . . . Impact . | . . . . . Kinetic . | . . . . . Secondary . | . . . . . Self-Inflicted Damage . | . . . . . Shots . | . . . . . Rammed . | . . . . . Targets Rammed 3 | . . 3 . . Kicked 3 | . . 3 . . Crushed . | . . . . . Highest Temperature 94 | 50 30 94 . 30 Average Temperature 24 | 24 18 34 . 11 Received Heat Transfer 372 | . . 36 . 336 Siege Activations . | . . . . . Robots Corrupted . | . . . . . Combat Hostiles . | . . . . . Parts Fried . | . . . . . Impact Corruptions . | . . . . . Robots Melted . | . . . . . Combat Hostiles . | . . . . . Parts Melted . | . . . . . Heat Transferred 555 | 111 . 444 . . Parts Sabotaged . | . . . . . Parts Stolen . | . . . . . Parts Stripped . | . . . . . Power Chain Reactions . | . . . . . Missiles Intercepted . | . . . . . Alert | -11 -10 -10 -10 -9 ------- Run | Jun Mat Min Exi Min Peak Influence 177 | 10 21 177 . 40 Initial 7 | . 6 7 . . Average 72 | 1 12 100 . 22 Maximum Alert Level . | . . . . . Low Security (%) 100 | 100 100 100 . 100 Level 1 . | . . . . . Level 2 . | . . . . . Level 3 . | . . . . . Level 4 . | . . . . . Level 5 . | . . . . . High Security . | . . . . . Max Security . | . . . . . Squads Dispatched 1 | . 1 . . . Investigation . | . . . . . Extermination . | . . . . . Reinforcement 1 | . 1 . . . Assault . | . . . . . Garrison . | . . . . . Intercept . | . . . . . Searches Triggered . | . . . . . Construction Impeded . | . . . . . Haulers Reinforced . | . . . . . Active Scanning Responses . | . . . . . Cargo Convoy Interrupts . | . . . . . Stealth | -11 -10 -10 -10 -9 --------- Run | Jun Mat Min Exi Min Distress Signals . | . . . . . Communications Jammed . | . . . . . Distress Signals . | . . . . . Times Spotted 28 | . 4 16 . 8 Peak Tracking Total 7 | . 4 5 . 7 Tactical Retreats 3 | . . 3 . . Traps | -11 -10 -10 -10 -9 ------- Run | Jun Mat Min Exi Min Traps Triggered . | . . . . . Indirectly . | . . . . . Trap Hack Attempts . | . . . . . Triggered . | . . . . . Disarmed . | . . . . . Reprogrammed . | . . . . . Reused . | . . . . . Traps Extracted . | . . . . . Installed . | . . . . . Triggered . | . . . . . Machines | -11 -10 -10 -10 -9 ---------- Run | Jun Mat Min Exi Min Machines Disabled . | . . . . . Max in Single Turn . | . . . . . Machines Repaired . | . . . . . Machines Sabotaged . | . . . . . Overloaded Fab Kills . | . . . . . Hacking | -11 -10 -10 -10 -9 --------- Run | Jun Mat Min Exi Min Machines Accessed 1 | . . . 1 . Terminals . | . . . . . Fabricators . | . . . . . Repair Stations . | . . . . . Recycling Units . | . . . . . Scanalyzers . | . . . . . Garrison Access . | . . . . . Total Hacks 1 | . . . 1 . Successful 1 | . . . 1 . Failed . | . . . . . Catastrophic . | . . . . . Database Lockouts . | . . . . . Manual 1 | . . . 1 . Terminals . | . . . . . Fabricators . | . . . . . Repair Stations . | . . . . . Recycling Units . | . . . . . Scanalyzers . | . . . . . Garrison Access . | . . . . . Terminal Hacks 1 | . . . 1 . EX-Prototype ID Bank 1 | . . . 1 . Fabricator Hacks . | . . . . . Repair Station Hacks . | . . . . . Recycling Unit Hacks . | . . . . . Scanalyzer . | . . . . . Garrison Access Hacks . | . . . . . Unauthorized Hacks . | . . . . . Terminals . | . . . . . Fabricators . | . . . . . Repair Stations . | . . . . . Recycling Units . | . . . . . Scanalyzers . | . . . . . Garrison Access . | . . . . . Data Cores Recovered . | . . . . . Used . | . . . . . Hacking Detections . | . . . . . Full Trace Events . | . . . . . Feedback Events . | . . . . . Feedback Blocked . | . . . . . Robot Schematics Acquired . | . . . . . Robots Built . | . . . . . Authchips . | . . . . . Time . | . . . . . Total Robot Build Rating . | . . . . . Part Schematics Acquired . | . . . . . Parts Built . | . . . . . Authchips . | . . . . . Time . | . . . . . Total Part Build Rating . | . . . . . Parts Repaired . | . . . . . Time . | . . . . . Parts Recycled . | . . . . . Recycled Matter . | . . . . . Retrieved Matter . | . . . . . Retrieved Components . | . . . . . Parts Scanalyzed . | . . . . . Part Schematics Acquired . | . . . . . Parts Damaged . | . . . . . Bothacking | -11 -10 -10 -10 -9 ------------ Run | Jun Mat Min Exi Min Used RIF Installer . | . . . . . Robots Hacked . | . . . . . Non-combat . | . . . . . Combat . | . . . . . Robot Hacks Applied . | . . . . . Relay Couplers Released . | . . . . . Fabnet Peak Effective % . | . . . . . Robots Rewired . | . . . . . Allies Hacked . | . . . . . Hacks Repelled . | . . . . . Allies | -11 -10 -10 -10 -9 -------- Run | Jun Mat Min Exi Min Total Allies . | . . . . . Largest Group . | . . . . . Highest-Rated Group . | . . . . . Highest-Rated Ally . | . . . . . Total Orders . | . . . . . Ally Attacks . | . . . . . Total Damage . | . . . . . Kills . | . . . . . Allies Corrupted . | . . . . . Allies Melted . | . . . . . Intel | -11 -10 -10 -10 -9 ------- Run | Jun Mat Min Exi Min Robot Analysis Total . | . . . . . Derelict Logs Recovered 2 | . . 2 . . Drone Launches . | . . . . . Drone Recoveries . | . . . . . Exploration | -11 -10 -10 -10 -9 ------------- Run | Jun Mat Min Exi Min Turns Passed 1090 | 83 91 551 291 74 Spaces Moved 766 | 60 66 389 242 9 Core 25 | 19 . . . 6 Treads . | . . . . . Legs 741 | 41 66 389 242 3 Wheels . | . . . . . Hover . | . . . . . Flight . | . . . . . Fastest Speed 50 | 50 120 120 120 120 Average Speed 119 | 97 120 120 120 188 Slowest Speed 200 | 120 120 120 120 200 Overloaded Moves . | . . . . . Propulsion Burnouts . | . . . . . Robots Hopped . | . . . . . Cave-ins Triggered . | . . . . . Exploration Rate (%) 35 | 6 23 79 62 9 Regions Visited 4 Branch Regions 3 Pre-discovered Areas 1 | . . 1 . . Known Exits Taken . | . . . . . Unknown Exits Taken 4 | 1 1 1 1 . Scrap Searched 1 | . . 1 . . Spaces Dug . | . . . . . Terrain Destroyed . | . . . . . Melee . | . . . . . Projectile . | . . . . . AOE . | . . . . . Terrain Rammed . | . . . . . Walls Destroyed . | . . . . . Machines Disabled . | . . . . . Actions | -11 -10 -10 -10 -9 --------- Run | Jun Mat Min Exi Min Total 863 | 76 76 434 242 35 Wait 20 | . 8 11 . 1 Move 762 | 59 65 388 241 9 Hop . | . . . . . Pick Up 15 | 7 2 3 1 2 Fast Attach 1 | 1 . . . . Attach 8 | 5 . 2 . 1 Detach . | . . . . . Swap . | . . . . . Drop . | . . . . . Fire 54 | 4 1 27 . 22 Melee . | . . . . . Ram . | . . . . . Kick 3 | . . 3 . . Crush . | . . . . . Escape Stasis . | . . . . . Rewire . | . . . . . Trap . | . . . . . Miscellaneous . | . . . . . Route ------- -11/Junkyard -10/Materials -10/Mines (discovered 3 exits: [*Mat x2] / *Exi) -10/Exiles -9/Mines History --------- Turn | Location | Event 3 | -11/Junkyard | Discovered new exit (range 15) 84 | -11/Junkyard | Entered Materials 139 | -10/Materials | Discovered new exit (range 15) 175 | -10/Materials | Entered Mines 176 | -10/Mines | Learned location of Storage (-9) 249 | -10/Mines | Learned Materials interactive machine intel 294 | -10/Mines | Discovered new exit (range 8) 313 | -10/Mines | Build established: Mutant 397 | -10/Mines | Learned Materials trap positions 416 | -10/Mines | Discovered new exit (range 8) 489 | -10/Mines | A weapon hastily lodged in a ceiling crevice suddenly fell to the ground 720 | -10/Mines | Deemed a non-threat by the Exiles lab entrance 721 | -10/Mines | Discovered new exit (range 5) 726 | -10/Mines | Entered Exiles 756 | -10/Exiles | Met 8R-AWN 776 | -10/Exiles | Met EX-HEX 814 | -10/Exiles | Met EX-BIN 837 | -10/Exiles | Aligned with FarCom system 838 | -10/Exiles | Given EX-Vault access code 867 | -10/Exiles | Opened EX-Vault 878 | -10/Exiles | Found 0b10 Alert Chip 904 | -10/Exiles | Warned to stay clear of 0b10 Research branches 942 | -10/Exiles | Met EX-DEC 1005 | -10/Exiles | Discovered new exit (range 10) 1017 | -10/Exiles | Left Exiles lab with 0b10 Alert Chip 1017 | -10/Exiles | Entered Mines 1018 | -9/Mines | Assembled infested the area 1042 | -9/Mines | Core integrity fell below 50% 1068 | -9/Mines | Lost 3 parts (2n1w) 1076 | -9/Mines | Core integrity fell below 20% 1091 | -9/Mines | Destroyed by G-47 Trooper with Particle Gun Last Messages --------------- 01048_ R-06 Scavenger collects Imp. Heat Sink. 01049_ R-06 Scavenger collects Heat Sink. 01049_ Acquired Aluminum Leg. 01050_ Acquired 16 matter. 01056_ T-07 Excavator is excavating. 01063_ G-34 Mercenary destroyed. 01064_ R-06 Scavenger collects Ion Engine. 01065_ T-07 Excavator is excavating. 01065_ R-06 Scavenger destroyed. 01068_ R-06 Scavenger collects Ion Engine. 01069_ T-07 Excavator is excavating. 01071_ Ion Engine destroyed. 01074_ T-07 Excavator is excavating. 01079_ G-34 Mercenary destroyed. 01079_ Switching to secondary target: G-47 Trooper. 01082_ T-07 Excavator is excavating. 01085_ Lgt. Assault Rifle destroyed. 01086_ T-07 Excavator is excavating. 01087_ Critical hit (Burn: +37). 01090_ T-07 Excavator is excavating. Map ----- +----------------------------------------------------+ | | | | | | | | | | | | | | | | | | | | | ???????????????????????????????????????????????? | | ???????????????????????????????????????????????? | | ???????????????????????????????????????????????? | | ???????????????????????????????????????????????? | | ??????????????????????####?????????????????????? | | ??????????????????????# #????????????????????? | | ??????????????????????# t ????????????????????? | | ??????????????????????# ????????????????????? | | ??????????????????????# ????????????????????? | | ??????????????????????# ????????????????????? | | ???????????????????????# ####?????????????????? | | ??????????????????????## ##????????????????? | | ??????????? ????????## g ##???????????????? | | ?????????? #### =%%% #???????????????? | | ?????????? !!%[ #???????????????? | | ??????????# t @##% ##???????????????? | | ??????????? ## ### ### #????????????????? | | ?????????????????????####??# ?????????????? | | ???????????????????????????# ?????????? | | ???????????????????????????### #??????? | | ?????????????????????????????? ##??????? | | ?????????????????????????????? #???????? | | ?????????????????????????????? #??????? | | ??????????????????????????????# ??????? | | ?????????????????????????????? ??????? | | ??????????????????????????????% # # ??????? | | ?????????????????????????????? " ##?##? ???????? | | ??????????????????????????????? #?????????????? | | ??????????????????????????????? #?????????????? | | ??????????????????????????????? ##?????????????? | | ??????????????????????????????? ???????????????? | | ???????????????????????????????????????????????? | | ???????????????????????????????????????????????? | | ???????????????????????????????????????????????? | | ???????????????????????????????????????????????? | | ???????????????????????????????????????????????? | | ???????????????????????????????????????????????? | | ???????????????????????????????????????????????? | | ???????????????????????????????????????????????? | | ???????????????????????????????????????????????? | +----------------------------------------------------+ Best States ------------- Heat Dissipation 25 Energy Generation 10 Energy Capacity 250 Matter Stores 300 Matter Capacity 300 Sight Range 16 Terrain Scan Density 10 Evasion (%) 55 Item Schematics ----------------- None Robot Schematics ------------------ None Fabricated ------------ Nothing Alien Tech Used ----------------- None Achievements -------------- None Challenges ------------ None Game ------ Seed EtherialSubatomicDevice Manual? 0 Play Time 00:09:10 Cumulative 27.6 hours Start 2023.04.09 @ 15:29:28 End 2023.04.09 @ 16:07:32 Sessions 1 Manual Loads 0 Difficulty Rogue Special Mode None Game No. 64 Rogue 64 Adventurer 0 Explorer 0 Win Type - Total 0 Types 0/0/0/0/0/0/0/0/0 Lore% 24 Gallery% 32 Achievement% 26 Wizard Run 0 Options --------- ASCII 0 Keyboard 0 Movement Mouse Keybinds 0 Fullscreen 1 Font 24/Smallcaps Map View 64x52 Tactical HUD 1 Map Filters NONE Filters NONE Steam 1 RUN: 535d07b5-8ecd-4ce6-ba82-99868520fe28